bitfinex/quotes_SOLUSD_20250721
["timestamp","ask_amount","ask_price","bid_price","bid_amount"]
[1753077206592,39.0,188.03,188.01,7.46365872]
[1753077206895,6.6509,188.04,188.01,7.46365872]
[1753077206896,39.69,188.02,188.01,7.46365872]
[1753077207277,39.0,188.02,188.01,7.46365872]
[1753077207603,1.588,188.1,188.04,16.78468397]
[1753077207776,0.06,188.1,188.07,7.46365872]
[1753077208368,60.69,188.08,188.06,7.46365872]
[1753077208586,60.69,188.08,188.02,7.46365872]
[1753077208587,0.69,188.07,188.02,7.46365872]
[1753077208977,104.37701997,188.08,188.03,7.46365872]
[1753077209167,104.37701997,188.08,188.07,7.46365872]
[1753077209168,60.0,188.08,188.07,7.46365872]
[1753077209373,60.0,188.08,188.07,5.31716913]
[1753077209572,60.0,188.08,188.07,7.46365872]
[1753077210691,60.0,188.08,188.07,8.16365872]
[1753077211275,60.0,188.08,188.07,13.48082785]
[1753077211688,60.0,188.08,188.07,8.16365872]
[1753077212392,60.0,188.08,188.07,30.26551182]
[1753077213071,60.0,188.08,188.07,56.26551182]
[1753077214104,60.0,188.08,188.07,50.94834269]
[1753077214479,60.0,188.08,188.07,7.46365872]
[1753077215006,98.98,188.08,188.07,7.46365872]
[1753077215303,98.96,188.08,188.07,7.46365872]
[1753077215801,99.65,188.08,188.03,22.1029163]
[1753077215973,99.65,188.08,188.07,7.46365872]
[1753077216171,99.65,188.08,188.03,48.1029163]
[1753077216380,99.65,188.08,188.07,7.46365872]
[1753077216575,60.0,188.08,188.07,7.46365872]
[1753077216782,98.94,188.08,188.07,7.46365872]
[1753077216995,99.63,188.08,188.03,31.31826472]
[1753077217201,99.63,188.08,188.07,7.46365872]
[1753077217505,98.94,188.08,188.07,7.46365872]
[1753077219396,60.0,188.08,188.07,30.26551182]
[1753077219799,60.0,188.08,188.07,8.16365872]
[1753077220097,60.0,188.08,188.07,7.46365872]
[1753077220476,60.0,188.08,188.07,24.94834269]
[1753077220677,60.0,188.08,188.07,30.26551182]
[1753077221095,60.0,188.08,188.06,26.0]
[1753077221404,60.0,188.08,188.07,7.46365872]
[1753077221696,60.0,188.08,188.07,24.94834269]
[1753077222601,60.0,188.08,188.07,32.41200141]
[1753077222790,60.0,188.08,188.07,30.26551182]
[1753077223298,60.0,188.08,188.07,22.8018531]
[1753077223598,60.0,188.08,188.07,69.16551182]
[1753077224400,0.06,188.1,188.09,26.0]
[1753077224592,0.06,188.1,188.09,15.45897781]
[1753077224904,0.06,188.1,188.09,21.43558156]
[1753077225285,0.20072082,188.14,188.1,26.0]
[1753077225500,0.20072082,188.14,188.13,7.46365872]
[1753077225691,0.20072082,188.14,188.13,24.24834269]
[1753077226003,0.20072082,188.14,188.13,24.90834269]
[1753077226301,0.20072082,188.14,188.13,50.90834269]
[1753077226799,0.20072082,188.14,188.12,26.0]
[1753077226997,0.20072082,188.14,188.13,7.46365872]
[1753077227602,0.86072082,188.14,188.04,4.25375583]
[1753077227902,39.52,188.13,188.05,50.00645743]
[1753077228200,39.52,188.13,188.07,16.78468397]
[1753077228401,39.52,188.13,188.11,7.46365872]
[1753077228987,0.66,188.12,188.08,7.46365872]
[1753077229315,0.66,188.12,188.07,16.78468397]
[1753077229614,0.66,188.11,188.08,7.46365872]
[1753077229910,54.87865872,188.1,188.0,0.66]
[1753077230085,39.04,188.09,188.04,7.46365872]
[1753077230284,39.7,188.09,188.0,31.97909176]
[1753077230514,0.66,188.08,188.04,7.46365872]
[1753077230708,39.02,188.09,188.07,7.46365872]
[1753077230879,39.02,188.09,188.08,7.46365872]
[1753077231077,39.68,188.09,188.02,0.03]
[1753077231299,0.66,188.08,188.06,7.46365872]
[1753077231498,0.66,188.08,188.02,0.03]
[1753077231812,7.9039,188.03,187.99,0.03]
[1753077232111,39.66,188.02,187.99,0.03]
[1753077232497,0.66,188.01,187.99,0.03]
[1753077232815,5.97911203,188.01,187.99,0.03]
[1753077233187,0.66,188.0,187.99,0.03]
[1753077233618,44.97863946,188.02,187.99,0.03]
[1753077233907,0.66,188.0,187.99,0.03]
[1753077234422,38.98,188.02,187.99,0.03]
[1753077234608,38.98,188.02,188.01,7.46365872]
[1753077236085,39.64,188.02,187.99,0.03]
[1753077236299,0.66,188.01,187.99,0.03]
[1753077236699,0.66,188.0,187.99,0.03]
[1753077237006,13.44280765,188.0,187.98,0.03]
[1753077237211,46.42365872,187.99,187.98,0.03]
[1753077237513,47.08365872,187.99,187.94,0.03]
[1753077237693,15.20215872,187.95,187.94,0.03]
[1753077237888,54.26215872,187.95,187.94,0.03]
[1753077238088,54.92215872,187.95,187.94,0.03]
[1753077238710,47.4585,187.95,187.94,0.03]
[1753077239009,60.24272269,187.95,187.94,0.03]
[1753077239390,47.4585,187.95,187.94,0.03]
[1753077239810,0.66,187.98,187.94,7.49365872]
[1753077240119,39.04,187.97,187.94,0.03]
[1753077240489,7.46365872,187.95,187.94,0.03]
[1753077240688,7.7385,187.94,187.87,0.2]
[1753077240911,12.78620502,187.88,187.87,0.2]
[1753077241089,39.04,187.88,187.87,0.2]
[1753077241289,39.7,187.88,187.87,0.2]
[1753077241501,47.16365872,187.88,187.87,0.2]
[1753077241714,39.7,187.88,187.87,0.2]
[1753077242100,52.48620502,187.88,187.87,0.2]
[1753077242629,7.7704,187.87,187.82,0.2]
[1753077242831,8.4304,187.87,187.85,7.49365872]
[1753077243118,8.4304,187.87,187.85,0.03]
[1753077243317,7.7704,187.87,187.85,0.03]
[1753077243508,0.66,187.86,187.85,0.03]
[1753077244200,8.12365872,187.86,187.85,0.03]
[1753077244994,13.44677167,187.86,187.85,0.03]
[1753077245394,0.66,187.86,187.85,0.03]
[1753077245595,7.7704,187.87,187.85,0.03]
[1753077246198,7.7704,187.87,187.85,7.49365872]
[1753077246413,7.7704,187.87,187.86,7.46365872]
[1753077246613,1.5325,187.87,187.86,7.46365872]
[1753077246809,39.04,187.88,187.86,7.46365872]
[1753077247421,0.66,187.9,187.86,7.46365872]
[1753077247747,38.96,187.89,187.85,7.49365872]
[1753077248021,0.66,187.88,187.85,0.03]
[1753077248393,46.42365872,187.89,187.85,0.03]
[1753077248394,0.66,187.87,187.85,0.03]
[1753077248623,39.28,187.86,187.85,0.03]
[1753077248927,39.94,187.86,187.85,0.03]
[1753077249227,45.26311295,187.86,187.85,0.03]
[1753077249397,39.94,187.86,187.85,0.03]
[1753077249599,0.66,187.86,187.85,0.03]
[1753077249798,39.26,187.86,187.85,0.03]
[1753077251416,6.2379,187.91,187.85,7.49365872]
[1753077251602,6.2379,187.91,187.89,7.46365872]
[1753077251802,39.22,187.93,187.9,8.12365872]
[1753077252002,6.5386,187.95,187.92,7.46365872]
[1753077252214,45.7586,187.95,187.93,7.46365872]
[1753077252812,6.5386,187.95,187.93,7.46365872]
[1753077253026,39.22,187.96,187.94,7.46365872]
[1753077253332,6.641,188.0,187.95,7.46365872]
[1753077253563,39.2,187.99,187.98,7.46365872]
[1753077253908,39.2,187.99,187.93,31.32097536]
[1753077254130,39.92,187.99,187.96,7.46365872]
[1753077254336,39.2,187.99,187.98,7.46365872]
[1753077254507,39.2,187.99,187.97,7.46365872]
[1753077254907,39.2,187.99,187.98,7.46365872]
[1753077255322,39.2,187.99,187.94,0.68]
[1753077255545,39.92,187.99,187.96,7.46365872]
[1753077256220,45.23949343,187.99,187.96,7.46365872]
[1753077256618,39.2,187.99,187.93,5.32112314]
[1753077256938,39.2,187.99,187.97,7.46365872]
[1753077258719,39.2,187.99,187.98,7.46365872]
[1753077259739,39.2,187.99,187.98,8.14365872]
[1753077259951,39.68,188.02,187.98,8.14365872]
[1753077260260,39.68,188.02,188.01,7.46365872]
[1753077260457,39.68,188.02,187.98,0.68]
[1753077260746,39.68,188.02,187.99,0.68]
[1753077260929,39.68,188.02,187.96,5.32016426]
[1753077261129,39.68,188.02,188.0,7.46365872]
[1753077261130,40.4,188.02,188.0,7.46365872]
[1753077261443,40.4,188.02,188.01,7.46365872]
[1753077261444,39.68,188.02,188.01,7.46365872]
[1753077261743,39.66,188.04,187.99,0.68]
[1753077261939,40.38,188.04,188.01,7.46365872]
[1753077262150,0.72,188.03,187.97,0.68]
[1753077262451,0.72,188.03,187.99,7.46365872]
[1753077262647,39.66,188.04,187.99,7.46365872]
[1753077262648,0.72,188.02,187.99,7.46365872]
[1753077262850,39.66,188.01,187.99,7.46365872]
[1753077263028,39.66,188.01,188.0,7.46365872]
[1753077263231,39.66,188.01,187.97,26.0]
[1753077263440,39.66,188.01,188.0,7.46365872]
[1753077263954,39.66,188.01,187.97,7.46365872]
[1753077263955,40.38,188.01,187.97,7.46365872]
[1753077264244,0.72,188.04,188.0,7.46365872]
[1753077264433,39.66,188.03,187.98,0.68]
[1753077264633,39.66,188.03,188.01,7.46365872]
[1753077265046,39.66,188.03,187.99,0.68]
[1753077265259,39.66,188.03,188.01,7.46365872]
[1753077265850,39.66,188.03,187.99,0.68]
[1753077266043,39.66,188.03,188.02,7.46365872]
[1753077266633,39.66,188.03,188.0,0.68]
[1753077266834,39.66,188.03,188.02,7.46365872]
[1753077267659,39.66,188.03,188.01,7.46365872]
[1753077267863,40.38,188.03,188.01,7.46365872]
[1753077268073,45.69835552,188.03,188.0,7.46365872]
[1753077268939,44.97835552,188.03,188.0,7.46365872]
[1753077269139,0.72,188.02,187.99,7.46365872]
[1753077269755,44.97835552,188.03,188.0,7.46365872]
[1753077270148,45.69835552,188.03,188.0,7.46365872]
[1753077270860,40.38,188.03,187.97,5.99994979]
[1753077271058,40.38,188.03,187.93,0.68]
[1753077271059,8.18365872,188.02,187.93,0.68]
[1753077271253,8.18365872,188.01,187.95,7.46365872]
[1753077271442,5.31943188,187.99,187.95,7.46365872]
[1753077271641,0.72,187.98,187.95,7.46365872]
[1753077271868,40.26,187.97,187.94,7.46365872]
[1753077272174,40.26,187.97,187.95,7.46365872]
[1753077272480,39.54,187.97,187.95,7.46365872]
[1753077272777,39.52,187.99,187.96,8.14365872]
[1753077273061,39.52,187.99,187.98,7.46365872]
[1753077273263,39.52,188.01,187.98,18.9]
[1753077273464,39.5,188.03,188.0,7.46365872]
[1753077273673,39.5,188.03,187.99,5.99931799]
[1753077273674,39.5,188.03,188.01,7.46365872]
[1753077273842,40.22,188.03,188.0,7.46365872]
[1753077274238,40.28,188.03,188.0,7.46365872]
[1753077274745,40.28,188.03,187.96,18.9]
[1753077274746,0.72,188.02,187.96,18.9]
[1753077275266,0.72,188.02,187.98,7.46365872]
[1753077275638,0.72,188.01,187.97,7.46365872]
[1753077275875,39.48,188.0,187.98,7.46365872]
[1753077277568,38.48,188.0,187.95,5.32049777]
[1753077277774,0.72,187.99,187.96,7.46365872]
[1753077277981,43.79918328,188.0,187.87,0.71]
[1753077277982,8.18365872,187.98,187.87,0.71]
[1753077278142,13.98985872,187.96,187.9,7.46365872]
[1753077278340,39.44,187.95,187.87,6.03274404]
[1753077278672,5.32197977,187.9,187.87,0.03]
[1753077278840,39.44,187.89,187.87,0.03]
[1753077279039,40.16,187.89,187.87,0.03]
[1753077279346,39.44,187.89,187.87,0.03]
[1753077279945,40.16,187.89,187.87,0.03]
[1753077280146,0.72,187.88,187.87,0.03]
[1753077280450,39.44,187.89,187.87,0.03]
[1753077280761,39.44,187.89,187.87,7.49365872]
[1753077280960,39.44,187.89,187.87,0.03]
[1753077281151,40.16,187.89,187.87,0.03]
[1753077281557,39.44,187.89,187.87,0.03]
[1753077282270,11.84654185,187.96,187.88,7.46365872]
[1753077282475,11.84654185,187.96,187.92,7.46365872]
[1753077282476,7.2462,187.96,187.92,7.46365872]
[1753077282766,45.9662,187.96,187.93,7.46365872]
[1753077283070,45.9662,187.96,187.9,6.00195741]
[1753077283243,1.5185,187.97,187.95,7.46365872]
[1753077283856,39.44,187.98,187.95,7.46365872]
[1753077284064,39.44,187.98,187.93,0.68]
[1753077284252,39.44,187.98,187.96,7.46365872]
[1753077284571,39.44,187.98,187.94,0.68]
[1753077284778,40.11,187.98,187.96,7.46365872]
[1753077284944,39.44,187.98,187.96,7.46365872]
[1753077285144,39.44,187.98,187.95,5.32044099]
[1753077285345,39.44,187.98,187.97,7.46365872]
[1753077285555,39.44,187.98,187.95,6.00044099]
[1753077285753,39.44,187.98,187.93,5.32087483]
[1753077286044,0.67,187.97,187.93,7.46365872]
[1753077286267,40.11,187.98,187.94,7.46365872]
[1753077286450,40.11,187.98,187.93,0.68]
[1753077286451,39.44,187.98,187.95,7.46365872]
[1753077287172,45.42979199,187.98,187.94,7.46365872]
[1753077287674,45.42979199,187.98,187.94,0.5]
[1753077287856,45.42979199,187.98,187.94,7.96365872]
[1753077288051,45.42979199,187.98,187.94,0.5]
[1753077288274,0.67,187.97,187.94,7.96365872]
[1753077288448,44.75979199,187.98,187.94,0.5]
[1753077288957,8.13365872,187.97,187.91,7.46365872]
[1753077289269,0.67,187.96,187.91,7.46365872]
[1753077289471,39.34,187.95,187.92,7.46365872]
[1753077289672,40.01,187.95,187.91,7.46365872]
[1753077289973,0.67,187.94,187.9,7.46365872]
[1753077290575,39.34,187.95,187.91,7.46365872]
[1753077290776,0.67,187.94,187.91,7.46365872]
[1753077291259,39.34,187.95,187.93,7.46365872]
[1753077291457,39.34,187.95,187.92,0.68]
[1753077291650,39.34,187.95,187.92,7.46365872]
[1753077291963,39.34,187.95,187.94,7.46365872]
[1753077292148,39.34,187.95,187.94,8.14365872]
[1753077292348,39.26,187.98,187.94,0.68]
[1753077292577,39.26,187.98,187.92,19.58]
[1753077292778,39.93,187.98,187.94,0.5]
[1753077293153,0.67,187.97,187.93,7.46365872]
[1753077293374,0.67,187.96,187.93,7.46365872]
[1753077293645,0.67,187.96,187.94,7.46365872]
[1753077293951,39.26,187.98,187.95,7.46365872]
[1753077294166,39.28,187.99,187.96,7.46365872]
[1753077294369,39.95,187.99,187.96,7.46365872]
[1753077294567,39.95,187.99,187.95,7.46365872]
[1753077295476,39.95,187.99,187.96,7.46365872]
[1753077295683,39.95,187.99,187.94,5.32084304]
[1753077295976,39.95,187.99,187.96,7.46365872]
[1753077297579,39.28,187.99,187.96,7.46365872]
[1753077298163,39.95,187.99,187.96,7.46365872]
[1753077299364,45.2694706,187.99,187.96,7.46365872]
[1753077299671,0.73,187.99,187.97,7.46365872]
[1753077299874,0.06,187.99,187.97,7.46365872]
[1753077300177,0.06,187.99,187.98,7.46365872]
[1753077300371,0.06,187.99,187.98,8.14365872]
[1753077300974,0.06,188.03,188.01,16.78468397]
[1753077301176,0.06,188.03,188.02,17.99654228]
[1753077301376,0.06,188.03,188.02,25.460201]
[1753077301581,0.06,188.03,188.02,13.46224184]
[1753077302479,0.06,188.03,188.02,13.99410015]
[1753077302683,0.06,188.03,188.02,88.80878412]
[1753077302858,0.06,188.06,188.05,24.24834269]
[1753077303053,0.06,188.06,188.05,63.30834269]
[1753077303254,0.06,188.08,188.05,114.91834269]
[1753077303557,0.06,188.11,188.1,5.3163211]
[1753077303760,0.06,188.11,188.1,85.79527065]
[1753077303957,0.06,188.11,188.1,47.45527065]
[1753077304178,0.20072082,188.14,188.13,74.81468397]
[1753077304399,60.0,188.29,188.21,32.03]
[1753077304683,60.0,188.29,188.28,7.46365872]
[1753077304854,63.9809565,188.29,188.21,39.02]
[1753077305053,63.9809565,188.29,188.18,16.78468397]
[1753077305054,8.13365872,188.28,188.18,39.0]
[1753077305279,0.67,188.27,188.25,7.46365872]
[1753077305494,0.67,188.26,188.24,7.46365872]
[1753077305660,0.67,188.26,188.23,7.46365872]
[1753077305661,5.31186004,188.26,188.23,7.46365872]
[1753077305970,0.67,188.25,188.21,7.46365872]
[1753077306282,0.67,188.28,188.24,7.46365872]
[1753077306576,58.0,188.29,188.26,7.46365872]
[1753077306760,58.0,188.29,188.28,7.46365872]
[1753077308357,58.0,188.29,188.28,24.24834269]
[1753077308690,5.30796845,188.4,188.29,16.78468397]
[1753077308860,0.67,188.38,188.34,7.46365872]
[1753077309258,0.67,188.37,188.34,7.46365872]
[1753077309783,5.30881969,188.37,188.34,7.46365872]
[1753077309965,0.67,188.36,188.34,7.46365872]
[1753077310584,5.97839706,188.39,188.35,7.46365872]
[1753077310763,0.67,188.38,188.35,7.46365872]
[1753077310959,0.67,188.37,188.32,7.46365872]
[1753077311162,7.46365872,188.38,188.32,7.46365872]
[1753077311378,0.67,188.36,188.32,7.46365872]
[1753077311564,0.67,188.35,188.32,7.46365872]
[1753077311763,5.30893474,188.37,188.33,7.46365872]
[1753077312090,0.67,188.37,188.33,7.46365872]
[1753077312385,0.67,188.37,188.34,7.46365872]
[1753077312572,5.97871,188.37,188.34,7.46365872]
[1753077312776,5.97871,188.37,188.33,7.46365872]
[1753077312777,0.67,188.36,188.33,7.46365872]
[1753077313362,0.66,188.35,188.33,7.46365872]
[1753077313764,0.66,188.34,188.33,7.46365872]
[1753077313966,0.66,188.36,188.33,7.46365872]
[1753077314163,7.46365872,188.38,188.33,7.46365872]
[1753077314368,0.66,188.37,188.29,44.21092508]
[1753077314692,7.46365872,188.36,188.26,18.9]
[1753077314989,0.66,188.35,188.31,7.46365872]
[1753077315153,0.66,188.34,188.31,7.46365872]
[1753077315559,0.66,188.33,188.29,7.46365872]
[1753077315759,0.66,188.33,188.31,7.46365872]
[1753077316191,0.66,188.33,188.3,7.46365872]
[1753077316699,0.66,188.32,188.18,7.463659]
[1753077316897,7.46365872,188.28,188.22,7.46365872]
[1753077317062,8.12365872,188.27,188.22,7.46365872]
[1753077317258,0.66,188.26,188.22,7.46365872]
[1753077317470,0.66,188.25,188.22,7.46365872]
[1753077317681,0.66,188.25,188.23,7.46365872]
[1753077317878,5.97135588,188.28,188.19,44.09354035]
[1753077318108,0.66,188.27,188.22,7.46365872]
[1753077318301,7.46365872,188.24,188.15,38.76]
[1753077318472,0.66,188.23,188.18,7.46365872]
[1753077318672,0.66,188.22,188.18,7.46365872]
[1753077318883,0.66,188.22,188.19,7.46365872]
[1753077319491,0.66,188.21,188.15,16.78468397]
[1753077319682,0.66,188.21,188.18,7.46365872]
[1753077320001,8.12365872,188.24,188.18,7.46365872]
[1753077320303,0.66,188.24,188.21,7.46365872]
[1753077320480,8.12365872,188.27,188.22,7.46365872]
[1753077320680,0.66,188.26,188.22,7.46365872]
[1753077321000,0.66,188.25,188.17,16.78468397]
[1753077321206,0.66,188.25,188.22,7.46365872]
[1753077321415,2.295,188.3,188.24,7.46365872]
[1753077321701,2.295,188.3,188.26,7.46365872]
[1753077322001,2.295,188.3,188.2,26.0]
[1753077322002,7.46365872,188.28,188.22,7.46365872]
[1753077322203,0.66,188.27,188.22,7.46365872]
[1753077322381,0.66,188.26,188.23,7.46365872]
[1753077322591,0.66,188.25,188.16,42.78468397]
[1753077322794,0.66,188.25,188.2,7.46365872]
[1753077322993,0.66,188.24,188.2,7.46365872]
[1753077323207,0.66,188.24,188.17,5.31428881]
[1753077323503,0.66,188.24,188.16,81.54468397]
[1753077323504,13.43607506,188.24,188.16,26.0]
[1753077323683,7.46365872,188.22,188.16,7.46365872]
[1753077323879,8.12365872,188.23,188.17,7.46365872]
[1753077324079,0.66,188.22,188.17,7.46365872]
[1753077324299,0.66,188.21,188.17,7.46365872]
[1753077324507,0.66,188.2,188.17,7.46365872]
[1753077324714,38.74,188.26,188.17,7.46365872]
[1753077324715,5.31208499,188.25,188.17,7.46365872]
[1753077325004,0.66,188.24,188.21,7.46365872]
[1753077325187,44.05191045,188.26,188.2,7.46365872]
[1753077325188,0.66,188.23,188.2,7.46365872]
[1753077326682,0.66,188.22,188.2,7.46365872]
[1753077326882,12.77574371,188.25,188.19,7.46365872]
[1753077327093,0.66,188.21,188.19,7.46365872]
[1753077327580,0.66,188.24,188.19,7.46365872]
[1753077327781,12.77574371,188.25,188.19,7.46365872]
[1753077328000,0.66,188.23,188.19,7.46365872]
[1753077328201,0.66,188.22,188.19,7.46365872]
[1753077328784,0.66,188.22,188.16,18.9]
[1753077328785,0.66,188.21,188.16,18.9]
[1753077328989,0.66,188.2,188.14,18.9]
[1753077329175,8.12365872,188.2,188.14,26.36365872]
[1753077329804,9.73445872,188.19,188.11,22.10066275]
[1753077329981,2.2708,188.19,188.11,41.00066275]
[1753077330176,7.58471705,188.19,188.14,7.46365872]
[1753077330482,6.92471705,188.19,188.14,7.46365872]
[1753077330811,0.66,188.18,188.14,7.46365872]
[1753077331886,0.66,188.18,188.15,7.46365872]
[1753077332194,0.66,188.18,188.15,26.36365872]
[1753077332380,0.66,188.18,188.15,18.9]
[1753077332583,5.31376425,188.2,188.15,26.36365872]
[1753077332908,0.66,188.19,188.15,26.36365872]
[1753077333080,5.31376425,188.2,188.15,18.9]
[1753077333280,0.66,188.18,188.15,26.36365872]
[1753077333482,0.66,188.18,188.15,18.9]
[1753077333681,0.66,188.17,188.13,18.9]
[1753077333902,8.12365872,188.16,188.11,7.46365872]
[1753077334106,0.66,188.15,188.11,26.36365872]
[1753077334279,13.2837407,188.2,188.11,7.46365872]
[1753077334477,0.1,188.43,188.22,26.0]
[1753077334709,26.54929529,188.61,188.43,47.34]
[1753077334892,26.54929529,188.61,188.46,65.49365872]
[1753077334893,25.59728681,188.49,188.46,65.49365872]
[1753077335087,0.66,188.6,188.42,7.46365872]
[1753077335088,0.66,188.6,188.52,32.03]
[1753077335280,7.46365872,188.58,188.53,0.53041956]
[1753077335480,7.46365872,188.54,188.46,0.53061657]
[1753077335680,8.12365872,188.53,188.46,0.53061657]
[1753077335900,7.46365872,188.51,188.46,2.59810146]
[1753077336178,0.66,188.55,188.44,10.17755522]
[1753077336488,7.46365872,188.54,188.44,29.24456939]
[1753077336695,0.66,188.55,188.38,9.13668174]
[1753077336696,0.66,188.53,188.42,40.58]
[1753077336898,7.46365872,188.51,188.43,7.46365872]
[1753077337283,11.20185621,188.58,188.5,58.03]
[1753077337502,11.20185621,188.56,188.5,40.58]
[1753077337806,11.20185621,188.55,188.47,52.32185621]
[1753077337990,11.20185621,188.56,188.48,11.20185621]
[1753077338193,11.20185621,188.53,188.46,26.0]
[1753077338400,11.20185621,188.5,188.4,26.0]
[1753077338708,0.66,188.49,188.4,11.20185621]
[1753077338884,0.66,188.51,188.5,0.23136659]
[1753077339091,11.86185621,188.51,188.5,0.23136659]
[1753077339409,0.66,188.51,188.5,0.23136659]
[1753077339604,11.86185621,188.51,188.5,0.23136659]
[1753077339990,23.06371242,188.51,188.5,0.23136659]
[1753077340182,11.20185621,188.42,188.34,11.20185621]
[1753077340387,0.66,188.44,188.34,41.1]
[1753077340604,11.20185621,188.41,188.35,11.20185621]
[1753077340803,0.66,188.42,188.33,11.20185621]
[1753077341102,0.66,188.42,188.31,11.20185621]
[1753077341402,11.20185621,188.38,188.28,5.84210349]
[1753077341582,0.66,188.39,188.28,11.20185621]
[1753077341782,0.66,188.39,188.29,11.20185621]
[1753077341783,11.20185621,188.35,188.29,11.20185621]
[1753077341993,11.20185621,188.35,188.28,11.20185621]
[1753077342400,26.0,188.49,188.34,11.20185621]
[1753077342606,11.20185621,188.37,188.26,78.40161401]
[1753077342812,11.20185621,188.36,188.29,11.20185621]
[1753077343001,46.36560271,188.48,188.27,0.53115206]
[1753077343195,11.20185621,188.37,188.31,11.20185621]
[1753077344398,11.20185621,188.37,188.29,26.0]
[1753077344399,11.20185621,188.39,188.33,11.20185621]
[1753077344599,41.04,188.47,188.29,26.0]
[1753077344600,0.67,188.4,188.34,11.20185621]
[1753077344803,11.20185621,188.39,188.33,11.20185621]
[1753077344990,11.20185621,188.39,188.3,16.78468397]
[1753077345192,11.20185621,188.37,188.3,16.78468397]
[1753077345397,11.20185621,188.38,188.32,11.20185621]
[1753077345910,11.20185621,188.39,188.32,11.20185621]
[1753077346114,11.20185621,188.39,188.33,11.20185621]
[1753077346605,0.67,188.44,188.38,11.20185621]
[1753077346810,11.20185621,188.43,188.37,11.20185621]
[1753077347505,11.20185621,188.41,188.35,11.20185621]
[1753077347813,16.50943552,188.41,188.35,11.20185621]
[1753077347998,11.20185621,188.4,188.33,37.20185621]
[1753077348191,11.20185621,188.4,188.34,11.20185621]
[1753077348588,16.50943552,188.41,188.35,11.20185621]
[1753077349082,16.50943552,188.41,188.34,11.20185621]
[1753077349615,16.50943552,188.41,188.35,11.20185621]
[1753077349998,16.50943552,188.41,188.33,26.0]
[1753077350302,16.50943552,188.41,188.35,11.20185621]
[1753077350709,5.30757931,188.41,188.34,26.0]
[1753077350893,5.30757931,188.41,188.35,11.20185621]
[1753077351289,5.30757931,188.41,188.34,26.0]
[1753077351498,11.20185621,188.38,188.3,0.5]
[1753077351711,11.20185621,188.39,188.33,11.20185621]
[1753077351914,0.67,188.4,188.35,11.20185621]
[1753077352111,0.67,188.4,188.34,11.20185621]
[1753077352496,0.06,188.43,188.39,11.20185621]
[1753077352497,5.36722751,188.43,188.39,11.20185621]
[1753077352699,5.36722751,188.43,188.4,11.20185621]
[1753077352890,0.06,188.43,188.35,46.68016445]
[1753077353100,0.06,188.43,188.39,11.20185621]
[1753077353293,0.06,188.43,188.4,11.20185621]
[1753077353499,0.06,188.43,188.41,11.20185621]
[1753077354102,0.06,188.43,188.4,11.20185621]
[1753077354314,0.06,188.43,188.37,0.53087009]
[1753077354519,0.06,188.43,188.42,11.20185621]
[1753077354902,0.06,188.43,188.42,26.0]
[1753077355109,0.06,188.43,188.42,37.20185621]
[1753077355291,0.06,188.43,188.42,37.73258543]
[1753077355497,0.06,188.43,188.42,33.82456161]
[1753077356305,0.06,188.43,188.42,74.60456161]
[1753077357116,0.06,188.43,188.42,122.58456161]
[1753077357297,0.67,188.56,188.46,42.78468397]
[1753077357499,0.67,188.56,188.52,11.20185621]
[1753077357708,16.50492668,188.57,188.51,11.20185621]
[1753077358227,5.30307047,188.57,188.51,11.20185621]
[1753077358524,11.20185621,188.56,188.5,11.20185621]
[1753077358721,17.17548919,188.55,188.47,0.53058842]
[1753077358913,5.97363298,188.55,188.46,88.79078153]
[1753077359122,0.67,188.55,188.51,11.20185621]
[1753077359997,0.67,188.54,188.49,11.20185621]